bitfinex/quotes_SOLUSD_20241202
["timestamp","ask_amount","ask_price","bid_price","bid_amount"]
[1733136911079,23.776884,223.93,223.91,5.0]
[1733136911590,135.2,223.97,223.96,5.0]
[1733136911788,1.01693514,223.97,223.96,5.0]
[1733136913298,6.78915843,224.1,223.96,5.0]
[1733136913496,0.12549,224.09,224.06,5.0]
[1733136914094,135.2,224.16,224.08,5.0]
[1733136914288,5.05635304,224.17,224.11,5.0]
[1733136914613,5.05635304,224.17,223.99,30.53922137]
[1733136914614,17.869756,224.18,224.13,5.0]
[1733136914781,18.11615304,224.24,224.13,5.0]
[1733136914782,160.10531147,224.24,224.13,5.0]
[1733136914979,153.2598,224.24,224.13,5.0]
[1733136915203,17.868186,224.2,224.13,5.0]
[1733136915405,0.12549,224.19,224.13,5.0]
[1733136915706,17.868186,224.2,224.13,5.0]
[1733136916304,0.12549,224.19,224.11,5.0]
[1733136916517,17.868186,224.2,224.15,5.0]
[1733136916716,135.2,224.27,224.19,5.0]
[1733136916912,17.8647,224.23,224.17,5.0]
[1733136917207,0.12549,224.22,224.15,5.0]
[1733136917517,17.8647,224.23,224.13,5.0]
[1733136917823,0.12549,224.22,224.13,5.0]
[1733136918325,0.12549,224.19,224.13,5.0]
[1733136918531,0.12549,224.19,224.15,5.0]
[1733136918815,23.902374,224.19,224.15,5.0]
[1733136919020,20.0,224.16,224.15,5.0]
[1733136919192,43.776884,224.16,224.15,5.0]
[1733136919518,23.776884,224.16,224.15,5.0]
[1733136920296,0.12549,224.22,224.15,5.0]
[1733136920494,5.05635304,224.28,224.24,5.0]
[1733136920719,135.2,224.32,224.24,5.0]
[1733136920918,17.86051,224.28,224.24,5.0]
[1733136921217,17.86051,224.28,224.19,5.0]
[1733136921402,5.26247644,224.27,224.19,5.0]
[1733136921718,0.12549,224.26,224.19,5.0]
[1733136922108,0.12549,224.27,224.19,5.0]
[1733136922423,0.12549,224.24,224.19,5.0]
[1733136922606,43.902374,224.24,224.19,5.0]
[1733136922917,23.902374,224.24,224.19,5.0]
[1733136923127,23.776884,224.2,224.19,5.0]
[1733136924025,23.902374,224.24,224.21,5.0]
[1733136924194,43.776884,224.22,224.21,5.0]
[1733136924621,20.12549,224.21,224.16,5.0]
[1733136924920,20.0,224.18,224.16,5.0]
[1733136925098,20.0,224.14,224.12,12.2899]
[1733136925303,20.0,224.14,224.12,17.2899]
[1733136926328,0.12549,224.13,224.08,35.6942]
[1733136926625,0.12549,224.13,223.88,4.466]
[1733136926626,20.0,224.1,224.05,5.0]
[1733136926822,20.0,224.1,224.02,35.1049]
[1733136926823,0.12549,224.09,224.02,35.1049]
[1733136927002,0.12549,224.09,224.05,5.0]
[1733136927205,0.12549,224.09,224.02,35.1049]
[1733136927620,0.12549,224.09,223.88,0.89060003]
[1733136927621,0.12549,224.09,223.98,5.0]
[1733136927927,0.12549,224.03,223.96,5.0]
[1733136928227,0.12549,224.03,223.98,5.0]
[1733136929016,0.12549,224.03,223.96,5.0]
[1733136929526,0.12549,224.03,223.97,5.0]
[1733136929896,0.12549,224.03,223.95,5.0]
[1733136930101,0.12549,224.03,223.97,5.0]
[1733136930302,0.12549,224.03,223.95,5.0]
[1733136930502,20.12549,224.03,223.95,5.0]
[1733136930700,20.0,224.04,223.93,5.0]
[1733136930701,0.12549,224.0,223.93,5.0]
[1733136930921,0.12549,224.0,223.9,5.0]
[1733136931111,0.12549,224.0,223.92,5.0]
[1733136931512,20.12549,224.0,223.9,5.0]
[1733136931710,20.12549,224.0,223.88,13.1241]
[1733136931711,0.12549,223.97,223.92,5.0]
[1733136933017,135.2,224.01,223.88,13.1241]
[1733136933018,20.0,223.93,223.9,5.0]
[1733136933522,20.0,223.94,223.9,5.0]
[1733136933736,0.12549,223.93,223.9,5.0]
[1733136933915,0.12549,223.93,223.88,5.0]
[1733136934232,0.12549,223.93,223.87,31.4206]
[1733136934233,20.0,223.91,223.9,5.0]
[1733136934724,43.776884,223.91,223.9,5.0]
[1733136935034,20.0,223.91,223.9,5.0]
[1733136936428,20.12549,223.91,223.88,5.0]
[1733136936606,20.0,223.87,223.86,5.0]
[1733136936812,20.0,223.87,223.82,5.0]
[1733136937128,20.0,223.87,223.85,5.0]
[1733136937333,0.12549,223.87,223.85,5.0]
[1733136937702,0.12549,223.87,223.83,5.0]
[1733136938043,23.776884,223.86,223.85,5.0]
[1733136938533,20.0,223.84,223.83,5.0]
[1733136939029,43.776884,223.84,223.83,5.0]
[1733136939413,20.0,223.84,223.83,5.0]
[1733136939606,20.0,223.84,223.81,31.6431]
[1733136939607,23.902374,223.83,223.81,5.0]
[1733136940328,23.776884,223.82,223.81,5.0]
[1733136941721,23.902374,223.82,223.81,5.0]
[1733136943515,23.902374,223.82,223.76,5.0]
[1733136943516,20.0,223.79,223.76,5.0]
[1733136943723,0.12549,223.78,223.75,5.0]
[1733136944237,0.12549,223.79,223.75,5.0]
[1733136944735,20.0,223.76,223.75,5.0]
[1733136945264,43.776884,223.76,223.75,5.0]
[1733136946310,20.0,223.73,223.72,5.0]
[1733136947050,43.776884,223.73,223.72,5.0]
[1733136948637,23.776884,223.72,223.7,5.0]
[1733136948841,20.0,223.81,223.78,5.0]
[1733136949039,5.0,223.9,223.78,5.0]
[1733136949040,135.2,223.86,223.78,5.0]
[1733136949239,135.2,223.88,223.8,5.0]
[1733136949439,140.32184856,223.88,223.78,5.0]
[1733136949633,5.24733856,223.87,223.78,5.0]
[1733136950348,5.12184856,223.87,223.81,5.0]
[1733136950736,0.12549,223.86,223.81,5.0]
[1733136950942,0.12549,223.84,223.81,5.0]
[1733136951153,0.12549,223.86,223.79,5.0]
[1733136951332,5.24733856,223.86,223.79,5.0]
[1733136951526,0.12549,223.82,223.81,5.0]
[1733136951732,52.86354442,223.82,223.81,5.0]
[1733136951925,40.73495061,224.24,223.84,5.0]
[1733136951926,135.2,223.92,223.84,5.0]
[1733136952243,75.11854418,224.1,223.75,31.4884]
[1733136952244,135.2,223.94,223.88,5.0]
[1733136952445,140.32184856,223.95,223.88,5.0]
[1733136952633,5.12184856,223.95,223.88,5.0]
[1733136952947,0.12549,223.94,223.88,5.0]
[1733136953148,0.12549,223.94,223.86,5.0]
[1733136953353,5.24733856,223.94,223.86,5.0]
[1733136953533,0.12549,223.93,223.86,5.0]
[1733136953737,0.12549,223.9,223.86,5.0]
[1733136954055,0.12549,223.88,223.84,5.0]
[1733136954356,0.12549,223.88,223.82,5.0]
[1733136954730,0.12549,223.89,223.8,5.0]
[1733136954928,0.12549,223.86,223.8,5.0]
[1733136955142,0.12549,223.86,223.81,5.0]
[1733136955143,23.902374,223.86,223.81,5.0]
[1733136955349,20.0,223.84,223.81,5.0]
[1733136955729,23.776884,223.83,223.81,5.0]
[1733136956349,23.776884,223.83,223.79,5.0]
[1733136956552,20.0,223.8,223.79,5.0]
[1733136956742,17.922,224.0,223.79,5.0]
[1733136956743,135.2,223.99,223.79,5.0]
[1733136957052,17.888122,223.9,223.79,5.0]
[1733136957829,17.888122,223.9,223.77,4.466]
[1733136958129,23.902374,223.89,223.77,4.466]
[1733136958343,23.902374,223.89,223.77,5.35725311]
[1733136958748,20.0,223.86,223.77,0.89125311]
[1733136959247,20.0,223.87,223.8,4.466]
[1733136959530,20.0,223.87,223.77,10.0]
[1733136959828,20.0,223.87,223.75,63.47678202]
[1733136960461,20.0,223.87,223.76,4.466]
[1733136960952,23.776884,223.86,223.76,4.466]
[1733136961142,20.0,223.83,223.76,4.466]
[1733136962549,20.0,223.87,223.78,4.466]
[1733136962853,17.888122,223.9,223.79,0.89120236]
[1733136963056,23.776884,223.89,223.79,0.89120236]
[1733136963359,0.12549,223.88,223.78,4.466]
[1733136963557,0.12549,223.88,223.75,36.4884]
[1733136963558,0.12549,223.88,223.76,4.466]
[1733136964052,0.12549,223.85,223.76,4.466]
[1733136964236,20.0,223.82,223.76,4.466]
[1733136965654,20.0,223.82,223.75,31.4884]
[1733136966034,23.902374,223.81,223.75,31.4884]
[1733136966262,20.0,223.78,223.75,31.4884]
[1733136967239,23.776884,223.83,223.76,4.466]
[1733136967456,20.0,223.8,223.76,4.466]
[1733136968036,0.12549,223.86,223.76,4.466]
[1733136968249,20.12549,223.86,223.76,4.466]
[1733136969041,23.776884,223.81,223.76,4.466]
[1733136969355,20.0,223.78,223.76,4.466]
[1733136969856,23.776884,223.85,223.75,31.4884]
[1733136970160,0.12549,223.81,223.71,0.5320254]
[1733136970367,23.902374,223.81,223.71,0.5320254]
[1733136970656,0.12549,223.77,223.71,0.5320254]
[1733136971857,20.0,223.74,223.71,0.5320254]
[1733136972337,23.776884,223.73,223.71,0.5320254]
[1733136973962,0.12549,223.72,223.71,0.5320254]
[1733136974955,0.12549,223.72,223.64,44.1342]
[1733136974956,20.0,223.7,223.64,44.1342]
[1733136975157,0.12549,223.72,223.58,32.2238]
[1733136975158,23.902374,223.65,223.58,32.2238]
[1733136975342,20.0,223.62,223.58,32.2238]
[1733136975555,11.94115275,223.62,223.58,32.2238]
[1733136975738,0.12549,223.61,223.58,32.2238]
[1733136975936,23.902374,223.61,223.58,32.2238]
[1733136976462,23.902374,223.61,223.57,12.4367]
[1733136977148,23.902374,223.61,223.55,0.12131738]
[1733136977536,20.0,223.58,223.55,0.12131738]
[1733136977743,0.12549,223.57,223.55,0.12131738]
[1733136977957,23.902374,223.57,223.55,0.12131738]
[1733136981851,23.902374,223.57,223.49,0.5320254]
[1733136981852,0.12549,223.53,223.49,0.5320254]
[1733136982045,20.12549,223.5,223.49,0.5320254]
[1733136982361,43.902374,223.5,223.49,0.5320254]
[1733136983171,43.902374,223.5,223.41,13.1035]
[1733136983346,0.12549,223.49,223.41,13.1035]
[1733136983959,20.0,223.46,223.41,13.1035]
[1733136984553,20.0,223.47,223.41,13.1035]
[1733136986079,20.0,223.43,223.41,13.1035]
[1733136986453,0.12549,223.46,223.41,13.1035]
[1733136986647,23.776884,223.45,223.41,13.1035]
[1733136986966,20.0,223.42,223.4,40.14596667]
[1733136987553,20.0,223.47,223.4,40.14596667]
[1733136987876,20.0,223.43,223.4,40.14596667]
[1733136988350,0.12549,223.49,223.4,40.14596667]
[1733136988351,20.0,223.46,223.4,40.14596667]
[1733136988553,23.776884,223.45,223.4,40.14596667]
[1733136988754,20.0,223.42,223.4,40.14596667]
[1733136989275,23.902374,223.51,223.4,40.14596667]
[1733136989469,0.12549,223.47,223.4,40.14596667]
[1733136989780,20.0,223.44,223.4,40.14596667]
[1733136990478,0.12549,223.43,223.4,40.14596667]
[1733136990777,20.0,223.41,223.4,40.14596667]
[1733136991975,43.902374,223.41,223.4,40.14596667]
[1733136992175,43.776884,223.41,223.4,40.14596667]
[1733136992482,43.902374,223.41,223.4,40.14596667]
[1733136993354,20.0,223.41,223.4,40.14596667]
[1733136994255,20.12549,223.41,223.4,40.14596667]
[1733136994474,20.0,223.41,223.4,40.14596667]
[1733136996087,46.2053,223.53,223.4,40.14596667]
[1733136996666,0.12549,223.51,223.4,40.14596667]
[1733136996961,139.42310445,223.56,223.4,40.14596667]
[1733136997266,17.920208,223.53,223.4,40.14596667]
[1733136997782,0.12549,223.52,223.4,40.14596667]
[1733136997977,20.0,223.5,223.4,40.14596667]
[1733136998279,9.34164863,223.56,223.42,69.51862137]
[1733136998578,5.68501396,223.62,223.44,21.09722137]
[1733136998758,0.12549,223.61,223.42,70.05262137]
[1733136998958,0.12549,223.59,223.42,43.9554]
[1733136999182,0.12549,223.57,223.42,43.9554]
[1733136999358,5.81050396,223.57,223.42,48.4214]
[1733136999775,20.0,223.54,223.42,48.4214]
[1733137000291,0.12549,223.53,223.42,48.4214]
[1733137000479,20.0,223.54,223.42,48.4214]
[1733137001475,20.0,223.5,223.42,48.4214]
[1733137002679,20.0,223.5,223.42,49.31416196]
[1733137003075,20.0,223.5,223.42,48.4214]
[1733137003380,5.68501396,223.57,223.43,0.89262413]
[1733137003584,140.88501396,223.62,223.44,4.466]
[1733137003787,5.68501396,223.62,223.45,0.89253974]
[1733137003961,5.68501396,223.62,223.46,17.69787949]
[1733137004455,5.68501396,223.62,223.46,4.466]
[1733137004755,0.12549,223.6,223.44,4.466]
[1733137004959,0.12549,223.58,223.45,4.466]
[1733137005189,20.0,223.56,223.45,4.466]
[1733137005480,43.776884,223.55,223.45,4.466]
[1733137005682,20.0,223.55,223.45,4.466]
[1733137005981,20.0,223.55,223.43,0.8926428]
[1733137005982,20.0,223.56,223.43,4.466]
[1733137006788,23.776884,223.55,223.45,17.69787949]
[1733137006979,135.2,223.68,223.47,22.69787949]
[1733137007184,17.911482,223.64,223.47,22.69787949]
[1733137007366,17.911482,223.64,223.47,9.466]
[1733137007570,0.12549,223.63,223.47,15.35839524]
[1733137007873,0.12549,223.63,223.49,4.466]
[1733137008073,0.12549,223.61,223.48,31.9097]
[1733137008273,20.12549,223.58,223.48,31.9097]
[1733137008485,20.0,223.58,223.48,31.9097]
[1733137009777,0.22179775,223.65,223.49,13.1836]
[1733137009983,5.68501396,223.67,223.5,0.89234454]
[1733137010341,17.910787,223.64,223.5,4.466]
[1733137010594,5.68501396,223.67,223.5,4.466]
[1733137010595,5.68501396,223.67,223.51,5.89235277]
[1733137010767,23.59330696,223.67,223.51,24.12423226]
[1733137010965,0.12549,223.66,223.51,5.0]
[1733137011165,0.12549,223.66,223.52,4.466]
[1733137011482,0.12549,223.64,223.52,4.466]
[1733137011672,0.12549,223.64,223.53,4.466]
[1733137011865,20.0,223.62,223.53,4.466]
[1733137012067,20.0,223.61,223.53,4.466]
[1733137012567,20.0,223.61,223.49,13.1836]
[1733137012568,20.0,223.61,223.5,4.466]
[1733137012885,23.902374,223.6,223.5,4.466]
[1733137013183,20.0,223.57,223.49,13.1836]
[1733137013576,20.0,223.57,223.49,17.6496]
[1733137014105,0.12549,223.59,223.49,17.6496]
[1733137014287,20.0,223.6,223.49,17.6496]
[1733137014489,20.0,223.6,223.49,13.1836]
[1733137014679,20.0,223.56,223.5,4.466]
[1733137014985,20.0,223.6,223.5,4.466]
[1733137014986,135.2,223.72,223.5,19.12423957]
[1733137015180,5.68501396,223.7,223.5,19.12423957]
[1733137015368,0.12549,223.66,223.5,14.12423957]
[1733137015577,0.12549,223.66,223.5,0.89236008]
[1733137015767,0.12549,223.66,223.5,4.466]
[1733137016489,20.0,223.63,223.5,4.466]
[1733137016792,20.0,223.59,223.5,4.466]
[1733137017295,0.12549,223.66,223.5,4.466]
[1733137017468,0.12549,223.66,223.5,18.59015799]
[1733137017672,20.0,223.63,223.5,4.466]
[1733137018080,23.902374,223.61,223.5,4.466]
[1733137018286,20.0,223.58,223.5,4.466]
[1733137019596,23.776884,223.57,223.49,13.1836]
[1733137019897,20.0,223.54,223.49,13.1836]
[1733137020594,20.0,223.62,223.5,4.466]
[1733137020778,20.0,223.58,223.5,4.466]
[1733137020969,23.776884,223.61,223.5,18.59018907]
[1733137021288,0.12549,223.69,223.5,18.59018907]
[1733137021498,9.83638301,223.7,223.52,18.23187949]
[1733137021798,5.68501396,223.7,223.54,4.466]
[1733137022470,0.12549,223.69,223.54,4.466]
[1733137022793,20.0,223.67,223.54,4.466]
[1733137022991,20.0,223.67,223.54,3.4524653]
[1733137023496,5.68501396,223.76,223.58,2.4389306]
[1733137024384,5.68501396,223.76,223.57,32.3488]
[1733137024385,10.68501396,223.76,223.57,32.3488]
[1733137024596,0.12549,223.69,223.57,32.3488]
[1733137024896,0.12549,223.67,223.57,32.3488]
[1733137025095,0.12549,223.65,223.57,32.3488]
[1733137025413,20.12549,223.62,223.57,32.3488]
[1733137025587,0.12549,223.6,223.53,12.2536]
[1733137025789,20.12549,223.6,223.53,12.2536]
[1733137026691,20.0,223.6,223.53,12.2536]
[1733137026990,20.0,223.56,223.53,12.2536]
[1733137027196,23.776884,223.59,223.53,12.2536]
[1733137027408,23.776884,223.59,223.54,4.466]
[1733137027585,32.2597,223.77,223.56,4.466]
[1733137027907,23.59140596,223.76,223.56,4.466]
[1733137028100,5.68501396,223.76,223.58,4.466]
[1733137028403,5.68501396,223.76,223.6,4.466]
[1733137028704,0.12549,223.75,223.6,4.466]
[1733137028879,5.68501396,223.76,223.6,4.466]
[1733137029083,5.68501396,223.76,223.61,32.3977]
[1733137029383,5.0,223.87,223.66,17.69787949]
[1733137029384,135.2,223.87,223.66,17.69787949]
[1733137029692,135.2,223.9,223.68,34.01697128]
[1733137030013,3.93002223,223.89,223.69,31.90369944]
[1733137030588,8.80922444,223.88,223.69,31.90369944]
[1733137030908,20.0,223.84,223.69,31.90369944]
[1733137031202,20.0,223.8,223.69,31.0122]
[1733137031587,0.12549,223.79,223.69,31.0122]
[1733137032196,20.0,223.8,223.69,31.0122]
[1733137032587,0.12549,223.83,223.69,31.0122]
[1733137033308,20.0,223.88,223.7,0.89148675]
[1733137033507,5.68501396,223.89,223.71,34.18527128]
[1733137033807,5.68501396,223.89,223.72,0.89136016]
[1733137034011,5.68501396,223.89,223.73,30.7921]
[1733137034712,0.12549,223.85,223.73,30.7921]
[1733137035093,0.12549,223.83,223.73,30.7921]
[1733137035798,0.12549,223.79,223.73,30.7921]
[1733137036016,23.902374,223.79,223.73,30.7921]
[1733137036213,0.12549,223.75,223.73,30.7921]
[1733137036416,0.12549,223.75,223.67,30.7274]
[1733137036798,20.0,223.72,223.67,30.7274]
[1733137037315,0.12549,223.71,223.67,30.7274]
[1733137037820,23.776884,223.78,223.67,30.7274]
[1733137037991,20.0,223.75,223.67,30.7274]
[1733137038401,0.12549,223.74,223.67,30.7274]
[1733137038914,20.0,223.79,223.67,30.7274]
[1733137039286,0.12549,223.74,223.67,30.7274]
[1733137040299,23.776884,223.78,223.68,5.35772982]
[1733137040509,135.2,223.9,223.69,4.466]
[1733137040826,0.12549,223.89,223.69,4.466]
[1733137041207,0.12549,223.87,223.67,30.7274]
[1733137041528,0.12549,223.85,223.67,35.1934]
[1733137041737,20.12549,223.85,223.67,35.1934]
[1733137042029,43.902374,223.83,223.67,35.1934]
[1733137042336,20.0,223.8,223.67,35.1934]
[1733137042538,20.0,223.8,223.68,0.89167336]
[1733137042709,135.2,223.83,223.68,5.35767336]
[1733137042910,23.776884,223.82,223.68,5.35767336]
[1733137043211,5.90681171,223.89,223.7,4.466]
[1733137043526,5.90681171,223.89,223.72,12.3647]
[1733137044142,0.12549,223.88,223.72,12.3647]
[1733137044430,0.12549,223.86,223.72,12.3647]
[1733137044630,0.12549,223.82,223.72,12.3647]
[1733137044931,0.12549,223.78,223.72,12.3647]
[1733137045514,0.12549,223.81,223.72,12.3647]
[1733137045818,0.12549,223.77,223.72,12.3647]
[1733137046326,0.12549,223.81,223.72,12.3647]
[1733137046513,20.0,223.78,223.72,12.3647]
[1733137046712,0.12549,223.77,223.72,12.3647]
[1733137047438,0.12549,223.81,223.72,12.3647]
[1733137048135,0.12549,223.77,223.72,12.3647]
[1733137048344,0.12549,223.77,223.67,30.7274]
[1733137048513,0.12549,223.73,223.67,30.7274]
[1733137049124,0.12549,223.73,223.62,32.9838]
[1733137049327,0.12549,223.69,223.62,32.9838]
[1733137049518,20.12549,223.69,223.62,32.9838]
[1733137049912,20.12549,223.69,223.6,262.589]
[1733137049913,0.12549,223.66,223.6,262.589]
[1733137050113,0.12549,223.66,223.6,250.0]
[1733137050114,20.12549,223.66,223.6,250.0]
[1733137050838,0.12549,223.61,223.6,250.0]
[1733137051655,0.12549,223.65,223.6,250.0]
[1733137051832,0.12549,223.61,223.6,250.0]
[1733137052340,0.12549,223.67,223.6,167.39395827]
[1733137052543,0.12549,223.65,223.6,167.39395827]
[1733137052724,20.12549,223.63,223.6,167.39395827]
[1733137053042,0.12549,223.61,223.6,167.39395827]
[1733137054237,0.12549,223.61,223.6,158.81783206]
[1733137055339,135.32549,223.61,223.6,158.69243206]
[1733137055555,29.16485044,223.61,223.6,97.90001731]
[1733137056236,23.902374,223.61,223.6,97.90001731]
[1733137057259,23.902374,223.61,223.6,97.77461731]
[1733137057852,26.64252043,223.61,223.6,97.77461731]
[1733137058059,31.64252043,223.61,223.6,97.77461731]
[1733137059050,82.89656686,223.61,223.6,97.77461731]
[1733137059734,77.89656686,223.61,223.6,97.64921731]
[1733137059938,82.89656686,223.61,223.6,97.64921731]
[1733137060332,87.04767542,223.61,223.6,73.87921731]
[1733137060531,90.00023586,223.61,223.6,66.75921731]
[1733137060732,90.00023586,223.61,223.6,57.84396745]
[1733137061034,90.00023586,223.61,223.6,50.72396745]
[1733137062051,89.70743586,223.61,223.6,0.88396745]
[1733137062971,89.70743586,223.61,223.42,30.9919]
[1733137062972,20.0,223.53,223.42,30.9919]
[1733137063148,20.0,223.52,223.42,30.9919]
[1733137063465,20.0,223.52,223.4,40.14596667]
[1733137063640,20.0,223.48,223.4,40.14596667]
[1733137064360,20.0,223.46,223.4,40.14596667]
[1733137065264,20.0,223.44,223.4,40.14596667]
[1733137065857,20.0,223.41,223.4,40.02056667]
[1733137066159,20.0,223.41,223.4,15.02056667]
[1733137066851,135.2,223.39,223.33,0.39204545]
[1733137067459,23.776884,223.38,223.33,0.39204545]
[1733137067960,20.0,223.41,223.33,0.39204545]
[1733137067961,20.0,223.36,223.33,0.39204545]
[1733137068646,20.0,223.37,223.33,0.39204545]
[1733137068847,20.0,223.34,223.33,0.39204545]
[1733137069736,135.2,223.36,223.33,0.39204545]
[1733137070364,158.976884,223.4,223.33,0.39204545]
[1733137070770,135.2,223.4,223.33,0.39204545]
[1733137070975,20.0,223.37,223.33,0.39204545]
[1733137071682,20.0,223.39,223.33,0.39204545]
[1733137071856,2.95256044,223.43,223.33,0.39204545]
[1733137073061,20.0,223.42,223.33,0.39204545]
[1733137073689,20.0,223.38,223.33,0.39204545]
[1733137074286,135.2,223.49,223.33,0.39204545]
[1733137074466,135.2,223.49,223.34,12.2405]
[1733137075081,135.2,223.49,223.35,33.2344]
[1733137075984,23.776884,223.48,223.35,33.2344]
[1733137076280,135.2,223.49,223.35,33.2344]
[1733137076978,5.48890251,223.53,223.35,33.2344]
[1733137077163,2.75206045,223.53,223.37,34.11897128]
[1733137077359,2.75206045,223.53,223.38,24.66969622]
[1733137077559,2.75206045,223.53,223.39,32.0666]
[1733137078765,2.75206045,223.53,223.4,5.0]
[1733137079569,2.30938689,223.54,223.4,5.89275225]
[1733137079890,20.0,223.55,223.41,12.3896]
[1733137081074,20.0,223.55,223.42,33.2945]
[1733137081287,20.0,223.55,223.42,34.18714963]
[1733137081474,20.0,223.55,223.42,33.2945]
[1733137083666,9.56099973,223.62,223.44,26.02120442]
[1733137083891,5.06144734,223.62,223.47,36.671884]
[1733137084189,135.2,223.65,223.47,36.671884]
[1733137084482,5.06144734,223.64,223.47,36.671884]
[1733137084799,5.06144734,223.64,223.47,12.895]
[1733137084995,5.06144734,223.64,223.47,26.13040442]
[1733137085166,5.06144734,223.64,223.49,30.6798]
[1733137085585,20.0,223.61,223.49,30.6798]
[1733137085915,20.0,223.56,223.49,30.6798]
[1733137086509,20.0,223.62,223.49,30.6798]
[1733137086692,20.0,223.6,223.49,30.6798]
[1733137089296,20.0,223.6,223.49,35.1458]
[1733137089492,5.68501396,223.64,223.5,0.89248075]
[1733137089825,4.19752818,223.71,223.51,25.71180442]
[1733137090005,4.19752818,223.71,223.52,0.89220087]
[1733137090191,4.19752818,223.71,223.52,5.35820087]
[1733137090691,4.19752818,223.71,223.54,17.70140442]
[1733137090890,135.2,223.73,223.54,17.70140442]
[1733137090891,135.2,223.73,223.58,36.3389]
[1733137091093,135.2,223.78,223.59,0.89203209]
[1733137091293,4.17195191,223.78,223.61,17.0297]
[1733137091615,4.17195191,223.78,223.61,12.5637]
[1733137091913,4.17195191,223.78,223.62,23.776884]
[1733137092213,4.17195191,223.78,223.61,12.5637]
[1733137092402,4.17195191,223.78,223.62,4.466]
[1733137093015,6.91209834,223.78,223.62,4.466]
[1733137093907,20.0,223.77,223.62,4.466]
[1733137094416,4.49955239,223.82,223.65,4.466]
[1733137094605,2.74014643,223.84,223.66,16.9448]
[1733137094917,139.37195191,223.85,223.67,0.89162575]
[1733137095121,139.37195191,223.85,223.67,22.03009429]
[1733137095416,139.37195191,223.85,223.67,0.89162575]
[1733137095611,139.37195191,223.85,223.66,33.61726854]
[1733137095815,4.17195191,223.84,223.66,33.61726854]
[1733137095991,9.85696587,223.84,223.66,12.4788]
[1733137096614,4.17195191,223.84,223.67,51.40266854]
[1733137096916,20.0,223.86,223.69,21.13846854]
[1733137097113,20.0,223.86,223.7,34.27806854]
[1733137097315,20.0,223.86,223.7,13.1396]
[1733137097816,24.17195191,223.86,223.7,13.1396]
[1733137098207,135.2,223.89,223.71,52.06441659]
[1733137098414,135.2,223.89,223.72,21.13846854]
[1733137098904,135.2,223.89,223.71,52.06441659]
[1733137099109,135.2,223.89,223.71,30.0344]
[1733137099308,4.17195191,223.88,223.71,30.0344]
[1733137099514,7.46813763,223.88,223.71,30.0344]
[1733137099714,26.16571224,223.87,223.71,30.0344]
[1733137099892,20.0,223.84,223.71,30.0344]
[1733137102210,20.0,223.82,223.71,29.9688]
[1733137102410,20.0,223.77,223.59,0.43551601]
[1733137102707,20.0,223.73,223.59,0.43551601]
[1733137103331,20.0,223.71,223.59,0.43551601]
[1733137103505,20.0,223.69,223.59,0.43551601]
[1733137103710,20.0,223.67,223.59,0.43551601]
[1733137103905,135.2,223.65,223.47,21.13846854]
[1733137104223,20.0,223.62,223.48,0.89238929]
[1733137104407,20.0,223.62,223.49,21.13846854]
[1733137104608,20.0,223.62,223.51,21.13846854]
[1733137104809,135.2,223.75,223.57,21.13846854]
[1733137105003,20.0,223.77,223.55,21.13846854]
[1733137105232,20.0,223.71,223.54,4.466]